Cogmind - Beta 17 @@@ ROGUE MODE // 2026.07.28 @ 08:28:00 Player: kite Result: Self-destructed Performance ------------- Evolutions (6) 3000 Regions Visited (24) 4800 Robots Destroyed (302) 1510 Value Destroyed (14849) 14849 Prototype IDs (218) 4360 Alien Tech Used (0) 0 Bonus (9924) 9924 TOTAL SCORE: 38443 Bonus ------- High Alert Combat Kills 2223 Follower Combat Kills 470 Entered Garrisons 600 Met Data Miner 300 Used Data Conduit 3000 Acquired ECA 300 Met Warlord at Base 500 MAIN.C Attacked Warlord 500 Warlord Defense Kills 2048 Friendly Fire -17 Cogmind --------- Core Integrity 1150/1150 Matter 122/300 Energy 323/325 System Corruption 0% Temperature Hot (279) Movement Treading (225) Ox1 Location -4/Waste Parts ------- > --- POWER (2) -------- Antimatter Reactor > --- PROPULSION (7) --- Armored Medium Treads Heavy Treads > --- UTILITY (6) ------ Improved Cooling System Cargo Storage Unit Advanced Signal Interpreter Makeshift Hacking Suite Advanced System Shield > --- WEAPON (4) ------- Wave Gun Wave Gun Gravity Flail > --- INVENTORY (30) --- Vortex Chain Reactor Armored Medium Treads Armored Medium Treads Armored Medium Treads Huge Storage Unit Experimental Energy Well (600) Matter Compressor (188) Advanced Sensor Array Hardened Medium Armor Plating Improved Medium Armor Plating Layered Heavy Armor Plating Damper Plating Ghost Barrier Mapping Drone Bay (3/3) Wardrone Bay Tesla Rifle Heavy Tesla Rifle Peak State ------------ > --- POWER ------------ Vortex Chain Reactor > --- PROPULSION ------- Armored Medium Treads Armored Medium Treads Armored Medium Treads Armored Medium Treads Armored Medium Treads Heavy Treads > --- UTILITY ---------- Cargo Storage Unit Advanced Sensor Array Advanced Signal Interpreter Makeshift Hacking Suite Advanced System Shield > --- WEAPON ----------- Tesla Rifle Heavy Tesla Rifle Hypervelocity Mass Driver Gravity Flail > --- INVENTORY -------- Angular Momentum Engine Antimatter Reactor Armored Medium Treads Armored Medium Treads Armored Medium Treads Armored Medium Treads Huge Storage Unit Experimental Energy Well Matter Compressor Hardened Medium Armor Plating Improved Medium Armor Plating Layered Heavy Armor Plating Damper Plating Improved Thermal Shield Ghost Barrier Mapping Drone Bay Wardrone Bay Wave Gun Wave Gun [Rating: 136] Favorites ----------- Power Antimatter Reactor Engine Ion Engine Power Core Enhanced Nuclear Core Reactor Antimatter Reactor Propulsion Armored Medium Treads Treads Armored Medium Treads Leg Enhanced Flexi-carbon Leg Wheel Wheel Utility Core Analyzer Device Improved Heat Sink Storage High-capacity Storage Unit Processor Core Analyzer Hackware Advanced System Shield Protection Makeshift Light Armor Plating Weapon Heavy Pick Energy Gun Gatling Laser Energy Cannon Advanced Plasma Cannon Ballistic Gun Battle Rifle Ballistic Cannon Bore Cannon Launcher Vortex Catalyst Activator Special Weapon Remote Datajack Impact Weapon Heavy Hammer Slashing Weapon Axe Piercing Weapon Heavy Pick Build | -11 -10 -10 -10 -9 -8 -8 -7 -7 -7 -7 -6 -6 -6 -6 -5 -5 -5 -5 -5 -5 -5 -4 -4 -4 ------- Run | Yrd Mat Min Exi Min Mat Gar Fac Gar Fac Gar Fac Low Low Dat Pro Fac Was Fac Upp Upp War Pro Fac Was Slots Evolved 12 | . . . . . 4 . 2 . . . 2 . . . . 2 . . . . . . 2 . Power 1 | . . . . . . . . . . . . . . . . . . . . . . . 1 . Propulsion 5 | . . . . . 2 . . . . . . . . . . 2 . . . . . . 1 . Utility 4 | . . . . . 2 . . . . . 2 . . . . . . . . . . . . . Weapon 2 | . . . . . . . 2 . . . . . . . . . . . . . . . . . Parts Attached 238 | 5 7 1 . 1 26 16 5 18 2 18 15 2 14 2 7 14 14 15 8 4 15 8 16 5 Power 19 | . 1 . . . 2 2 . 3 1 1 1 . . 1 . 1 1 . . . 2 . 1 2 Engine 9 | . 1 . . . 2 1 . 3 . . . . . . . . . . . . 1 . . 1 Core 4 | . . . . . . 1 . . 1 . . . . 1 . . . . . . 1 . . . Reactor 6 | . . . . . . . . . . 1 1 . . . . 1 1 . . . . . 1 1 Propulsion 75 | 2 . . . . 9 7 2 9 . 6 5 . 3 . 4 5 5 5 2 2 1 1 6 1 Treads 51 | 2 . . . . . 6 . 9 . 6 4 . 3 . . . 3 5 2 2 1 1 6 1 Leg 21 | . . . . . 6 1 2 . . . 1 . . . 4 5 2 . . . . . . . Wheel 3 | . . . . . 3 . . . . . . . . . . . . . . . . . . . Hover . | . . . . . . . . . . . . . . . . . . . . . . . . . Flight . | . . . . . . . . . . . . . . . . . . . . . . . . . Utility 79 | 1 4 1 . . 8 5 2 5 1 4 4 2 8 1 1 6 4 5 2 2 4 4 4 1 Device 31 | . 1 1 . . 2 3 . 2 . 2 3 1 3 . 1 5 1 1 1 1 1 1 . 1 Storage 9 | 1 3 . . . . . . . . . 1 1 . . . . 1 1 . . . 1 . . Processor 11 | . . . . . . . 1 . . . . . 1 . . 1 1 1 1 . 3 1 1 . Hackware 3 | . . . . . . . . . 1 . . . . . . . . . . . . . 2 . Protection 25 | . . . . . 6 2 1 3 . 2 . . 4 1 . . 1 2 . 1 . 1 1 . Artifact . | . . . . . . . . . . . . . . . . . . . . . . . . . Weapon 65 | 2 2 . . 1 7 2 1 1 . 7 5 . 3 . 2 2 4 5 4 . 8 3 5 1 Energy Gun 25 | 1 2 . . 1 2 . . 1 . 5 1 . . . 1 . . 2 . . 3 2 3 1 Energy Cannon 1 | . . . . . . . . . . . . . . . . 1 . . . . . . . . Ballistic Gun 14 | 1 . . . . . . . . . 2 . . . . . . 4 2 1 . 4 . . . Ballistic Cannon 4 | . . . . . . . . . . . . . 1 . . . . . 2 . . . 1 . Launcher 7 | . . . . . 1 2 . . . . 1 . . . 1 . . 1 . . 1 . . . Special Weapon 2 | . . . . . . . . . . . 1 . . . . 1 . . . . . . . . Impact Weapon 5 | . . . . . 2 . 1 . . . . . . . . . . . . . . 1 1 . Slashing Weapon 3 | . . . . . 2 . . . . . . . . . . . . . 1 . . . . . Piercing Weapon 4 | . . . . . . . . . . . 2 . 2 . . . . . . . . . . . Special Melee Weapon . | . . . . . . . . . . . . . . . . . . . . . . . . . Unidentified Prototypes 8 | . . . . . . . . 1 1 . 2 . . . . . . . . . 2 . 2 . Corrupted Parts 4 | . . . . . . . . . . 2 . . . . 2 . . . . . . . . . System Corruption 24 | . . . . . . . . . . 4 . . . . 20 . . . . . . . . . Parts Lost 96 | . . . . . 4 11 1 15 . 7 . 1 5 3 7 8 . 16 1 3 . 9 2 3 Power 9 | . . . . . . 2 . 3 . . . . . . . 1 . 1 . . . 1 . 1 Propulsion 39 | . . . . . 2 4 1 7 . 4 . . 3 . 3 3 . 6 1 1 . 2 1 1 Utility 18 | . . . . . 1 5 . 2 . 1 . . 1 2 3 1 . 1 . 1 . . . . Weapon 30 | . . . . . 1 . . 3 . 2 . 1 1 1 1 3 . 8 . 1 . 6 1 1 Highest Loss Streak 10 | . . . . . 3 3 1 3 . 4 . 1 2 2 3 4 . 10 1 2 . 5 2 3 To Critical Strikes 1 | . . . . . . . . 1 . . . . . . . . . . . . . . . . Average Backups 16 | 2 6 8 10 12 16 17 17 16 17 16 17 18 17 16 17 17 19 22 20 19 18 14 13 18 Power 1 | . . . . . . . . . 1 1 1 1 1 1 1 1 1 2 2 2 1 1 . 1 Propulsion 3 | 1 4 4 4 4 4 7 9 5 3 2 2 3 2 2 4 3 3 5 4 1 1 1 2 4 Utility 7 | . . 1 2 3 6 3 5 8 10 9 7 7 7 7 5 9 8 9 10 11 11 8 9 10 Weapon 3 | . 2 3 4 5 5 5 3 1 2 2 4 5 5 3 3 3 3 3 1 3 3 2 . 2 Tool/Special . | . . . . . . . . . . . . . . . . . . . . . . . . . Unused Backups 39 | . . . . . 2 4 . 2 1 . 7 . 1 . . 2 4 2 4 . 3 . 1 6 Power 5 | . . . . . . 2 . . 1 . . . . . . . . 1 1 . . . . . Propulsion 3 | . . . . . . 1 . . . . . . . . . 1 1 . . . . . . . Utility 26 | . . . . . 1 1 . 2 . . 5 . 1 . . 1 2 1 3 . 2 . 1 6 Weapon 5 | . . . . . 1 . . . . . 2 . . . . . 1 . . . 1 . . . Tool/Special . | . . . . . . . . . . . . . . . . . . . . . . . . . Average Slot Usage (%) 88 | . 86 100 76 71 91 89 99 91 84 88 92 89 87 91 90 90 84 77 93 95 89 75 85 87 Engine 3 | . 11 14 14 14 9 7 . 6 4 . . . . . . . . . . . 3 . . 2 Core 1 | . . . . . . . 7 . 2 6 . . . 4 6 3 . . . . . . . . Reactor 1 | . . . . . . . . . . . 6 6 6 1 . 1 5 4 5 5 . . 5 5 Treads 23 | . 28 28 28 28 5 25 23 27 30 23 19 20 18 20 16 4 11 18 28 34 35 31 33 33 Leg 4 | . . . . . 27 10 5 2 . . . . . . 4 28 12 . . . . . . . Device 8 | . 3 14 14 14 7 4 12 5 7 13 19 14 9 13 11 14 8 4 5 5 3 . 6 5 Storage 7 | . 14 14 14 14 9 9 7 7 7 7 6 11 11 6 6 5 5 5 5 5 5 4 6 5 Processor 8 | . . . . . . . 5 7 7 7 6 6 6 6 6 9 12 11 17 17 18 19 5 5 Protection 5 | . . . . . 13 13 4 8 2 1 6 6 10 12 10 1 3 4 5 5 . . 1 . Energy Gun 8 | . 26 28 5 . 12 . . 1 7 18 24 16 8 . 8 1 . . 3 . . 8 9 11 Ballistic Gun 3 | . . . . . . . . . . 4 . . . . . . 17 16 13 7 3 9 1 . Ballistic Cannon 1 | . . . . . . . . . . . . . 2 . 6 . 1 . 2 11 . . 2 4 Impact Weapon 2 | . . . . . 3 8 22 13 7 1 . . . . . . . . . . . . 2 4 Slashing Weapon 1 | . . . . . 2 8 7 7 . . . . . . . . . . . . 3 . . . Piercing Weapon 2 | . . . . . . . . . . . 1 . 6 24 8 10 2 3 1 . 3 . . . Peak Build Rating 136 | 5 10 10 10 10 32 34 41 52 56 58 71 70 79 80 81 89 93 99 98 98 113 108 131 136 Average Rating 63 | 3 8 9 6 6 24 30 38 40 54 52 66 65 68 78 74 76 81 88 92 92 104 88 120 128 On Entrance 56 | . 5 9 10 6 10 31 34 41 52 56 58 68 63 79 80 68 71 89 87 97 91 100 83 131 Avg Prop Armor Cover (%) 6 | . . . . . 6 . . 8 . . . . . . 5 9 . . . . . 5 . . Naked Turns 174 | . . . . . . . . . . . . . . . . . . . . . . 174 . . Heaviest Build 210 | 7 52 52 52 52 80 86 74 77 72 75 81 73 86 86 91 71 173 187 137 137 177 171 210 204 Greatest Support 220 | 40 40 40 40 40 61 82 82 84 82 115 125 123 135 135 135 116 220 220 182 179 163 163 185 205 Greatest Overweight (x) 4 | . 1 1 1 1 4 2 1 1 . . . . . . 2 . 1 1 . 1 1 1 1 1 Average Overweight (x) . | . . 1 1 1 1 . . . . . . . . . . . . . . . . . . . Largest Inventory Capacity 30 | 8 20 20 20 20 20 20 20 20 20 20 20 20 20 20 20 20 30 30 25 25 30 30 30 30 Average Capacity 22 | 6 13 20 20 20 20 20 20 20 20 20 20 20 20 20 20 20 24 29 25 25 29 27 27 30 Most Carried 30 | 5 8 9 12 13 20 20 20 20 20 20 20 20 20 20 20 20 30 30 25 25 30 29 30 30 Average Carried 19 | 2 6 8 10 12 17 18 17 17 20 19 19 19 19 17 18 18 23 27 24 23 28 24 25 29 Final Capacity 30 | 8 20 20 20 20 20 20 20 20 20 20 20 20 20 20 20 20 30 25 25 25 30 25 30 30 Final Carried 30 | 5 7 9 12 11 20 17 19 20 20 20 20 20 18 19 17 20 30 23 25 25 29 24 30 29 Class Distribution -------------------- 24% | Mutant 22% | Scavenger-Tank 7% | Hauler-Gunner 6% | Gladiator 6% | Hauler-Tank 5% | Scavenger-Gunner 4% | Scavenger-Gladiator 4% | Scavenger-Mutant 3% | Derelict-Gladiator 3% | Hauler-Mutant 3% | Gunner Dominant Class ---------------- Mutant | -10/Materials Mutant | -10/Mines Mutant | -10/Exiles Mutant | -9/Mines Mutant | -8/Materials Mutant | -8/Garrison Gladiator | -7/Factory Scavenger-Gladiator | -7/Garrison Scavenger-Gunner | -7/Factory Scavenger-Tank | -7/Garrison Scavenger-Tank | -6/Factory Scavenger-Tank | -6/Lower Caves Scavenger-Tank | -6/Lower Caves Gladiator | -6/Data Miner Scavenger-Gunner | -5/Proximity Caves Scavenger-Mutant | -5/Factory Hauler-Tank | -5/Waste Hauler-Tank | -5/Factory Scavenger-Tank | -5/Upper Caves Gunner | -5/Upper Caves Hauler-Mutant | -5/Warlord Hauler-Gunner | -4/Proximity Caves Hauler-Skirmisher | -4/Factory Hauler-Tank | -4/Waste Resources | -11 -10 -10 -10 -9 -8 -8 -7 -7 -7 -7 -6 -6 -6 -6 -5 -5 -5 -5 -5 -5 -5 -4 -4 -4 ----------- Run | Yrd Mat Min Exi Min Mat Gar Fac Gar Fac Gar Fac Low Low Dat Pro Fac Was Fac Upp Upp War Pro Fac Was Matter Collected 9985 | 63 232 85 21 . 473 953 23 613 . 690 703 98 473 87 679 754 382 817 1284 269 250 543 153 340 Remotely 215 | . . . . . . . . . . . . . 184 . . . . . . 31 . . . . Salvage Created 13708 | 22 232 426 . . 838 935 95 1997 . 873 1069 200 570 374 286 1191 604 1270 1131 167 230 453 149 596 Parts 516 | . 15 21 . . 49 33 9 80 . 37 53 4 24 11 11 56 5 63 19 2 6 9 6 3 Haulers Intercepted 4 | . 1 . . . 1 . . . . . 1 . . . . . . 1 . . . . . . Recyclers Shooed 3 | . 1 . . . . . . . . . . . . . . . . 1 1 . . . . . Parts Field Recycled 20 | . . . . . . . . . . . . . . . . 20 . . . . . . . . Retrieved Matter 77 | . . . . . . . . . . . . . . . . 77 . . . . . . . . Parts Self-Destructed 58 | . . . . . . . . . . . . 5 19 . 8 . . . 13 2 . 11 . . Prevented 14 | . . . . . . . . . . . . 4 . . 4 . . . 1 1 . 4 . . Parts Restored . | . . . . . . . . . . . . . . . . . . . . . . . . . Kills | -11 -10 -10 -10 -9 -8 -8 -7 -7 -7 -7 -6 -6 -6 -6 -5 -5 -5 -5 -5 -5 -5 -4 -4 -4 ------- Run | Yrd Mat Min Exi Min Mat Gar Fac Gar Fac Gar Fac Low Low Dat Pro Fac Was Fac Upp Upp War Pro Fac Was Combat Hostiles Destroyed 246 | . 5 11 . . 22 31 4 30 . 17 10 4 12 4 5 16 . 27 11 5 15 13 2 2 Melee 57 | . . . . . 4 10 3 17 . 5 . . 1 4 3 5 . 5 . . . . . . Guns 75 | . 5 11 . . 7 . . 3 . 7 5 3 7 . . 1 . 10 2 . 1 12 1 . Cannons 20 | . . . . . . . . . . . . . 2 . 1 . . . 9 5 . . 1 2 AOE 73 | . . . . . 9 15 . 1 . 3 5 . 2 . 1 10 . 12 . . 14 1 . . Classes Destroyed 23 | 1 5 3 . . 3 2 . 1 . . . . 2 . . . . 1 . . 3 1 . 1 Worker 16 | . 2 1 . . 1 . . . . . 11 . . . . 1 . . . . . . . . Builder 13 | . 1 . . . 4 . . . . . 1 . . . . 3 . 4 . . . . . . Tunneler 3 | 1 . . . . . . . . . . . . . . . 2 . . . . . . . . Hauler 4 | . 1 . . . 1 . . . . . 1 . . . . . . 1 . . . . . . Recycler 11 | . . 2 . . 1 . . . . . 4 . . . . 4 . . . . . . . . Drone 2 | . . . . . . . . . . . . . . . . . . . . . . 2 . . Watcher 6 | . 2 . . . 2 1 . . . . 1 . . . . . . . . . . . . . Swarmer 46 | . . 3 . . 7 10 4 3 . . 3 . 6 . . 5 . 4 1 . . . . . Grunt 96 | . 5 6 . . 7 11 . 12 . 6 4 2 4 . . 11 . 12 2 2 6 6 . . Brawler 8 | . . . . . 1 . . 2 . . . 1 . . . . . . 2 1 . 1 . . Duelist 5 | . . . . . . . . . . . . . 1 . . . . . 3 . 1 . . . Protector 1 | . . . . . . . . . . . . . . . . . . . . . 1 . . . Sentry 29 | . . 2 . . 4 5 . 5 . 4 1 1 . . 1 . . 2 1 . . 1 2 . Demolisher 1 | . . . . . . 1 . . . . . . . . . . . . . . . . . . Specialist 3 | . . . . . 1 . . 1 . 1 . . . . . . . . . . . . . . Hunter 18 | . . . . . 2 3 . 2 . 1 . . . . 1 . . 2 2 2 2 1 . . Programmer 24 | . . . . . . . . 5 . 5 2 . . . 2 . . 6 . . 3 1 . . Heavy 1 | . . . . . . . . . . . . . . . . . . 1 . . . . . . Behemoth 4 | . . . . . . 1 . . . . . . 1 . 1 . . . . . . 1 . . Compactor 2 | . . . . . . . . . . . . . . . . . . . . . . . . 2 Enhanced Grunt 4 | . . . . . . . . . . . . . . 4 . . . . . . . . . . Striker 1 | . . . . . . . . . . . . . . . . . . . . . 1 . . . Executioner 1 | . . . . . . . . . . . . . . . . . . . . . 1 . . . Decomposer 1 | . . . . . . . . . . . . . 1 . . . . . . . . . . . Packrat 8 | . . . . . . . . . . . . . 2 . . . . . 6 . . . . . Samaritan 4 | . . . . . . . . . . . . . 1 . 1 . . . 2 . . . . . Thug 2 | . . . . . . . . . . 2 . . . . . . . . . . . . . . Savage 1 | . . . . . . . . . . 1 . . . . . . . . . . . . . . Best Kill Streak 19 | 1 3 3 . . 12 8 4 4 . 3 19 3 3 2 1 7 . 9 9 3 7 5 2 1 Combat Bots Only 9 | . 2 3 . . 9 8 4 4 . 3 6 3 3 2 1 6 . 6 9 3 7 5 2 1 Max Kills in Single Turn 7 | 1 1 2 . . 3 5 1 1 . 2 6 1 2 1 1 7 . 3 2 1 3 2 1 1 Gunslinging 1 | . . . . . . . . . . 1 1 . 1 . . . . . . . . . . . Exploded 5 | . . . . . 2 5 . 1 . 1 3 . 1 . 1 5 . 3 . . 3 1 . . Melee 1 | . . . . . 1 1 1 1 . 1 . . 1 1 1 1 . 1 . . . . . . Uniques/NPCs Destroyed . | . . . . . . . . . . . . . . . . . . . . . . . . . Combat | -11 -10 -10 -10 -9 -8 -8 -7 -7 -7 -7 -6 -6 -6 -6 -5 -5 -5 -5 -5 -5 -5 -4 -4 -4 -------- Run | Yrd Mat Min Exi Min Mat Gar Fac Gar Fac Gar Fac Low Low Dat Pro Fac Was Fac Upp Upp War Pro Fac Was Hostile Shots Fired 1825 | . 13 40 . . 133 164 21 321 2 137 58 35 103 27 66 67 . 231 30 38 23 303 10 3 Missed 544 | . 2 19 . . 24 31 8 92 1 43 25 11 34 6 19 20 . 72 3 5 13 114 2 . Hits 1281 | . 11 21 . . 109 133 13 229 1 94 33 24 69 21 47 47 . 159 27 33 10 189 8 3 Melee 27 | . . . . . . . . 16 . . . . 2 . . . . . 6 . . . . 3 Projectile 1254 | . 11 21 . . 109 133 13 213 1 94 33 24 67 21 47 47 . 159 21 33 10 189 8 . AOE 1 | . . . . . . . . . . . . . . . . . . . . . . . 1 . Critical Strikes 45 | . . 1 . . 2 4 . 11 . 2 1 . 3 . 1 5 . 7 2 1 . 3 . 2 Part Disruptions 6 | . . . . . . . . . . . . . . 2 . . . . . . . 4 . . Damage Taken 21852 | . 125 277 . . 1545 1948 204 2721 14 1211 466 243 1304 967 996 1094 . 4263 615 601 356 2452 296 154 Core 2091 | . 30 38 . . 230 67 33 264 . 156 30 . 148 92 59 163 . 386 83 16 34 262 . . Absorbed by Shields 278 | . . . . . . 143 . . . 135 . . . . . . . . . . . . . . Reduced by Siege Mode 62 | . . . . . . . . . . . . 16 5 . . . . . 35 6 . . . . Redirected to Shielding 21 | . . . . . . . . . . . . . . . 15 6 . . . . . . . . Ignored by Resistances 410 | . . . . . 89 205 . 105 . 11 . . . . . . . . . . . . . . Regen/Repaired (Parts) 85 | . . . . . . . . . . . . . . . . . . . . . 85 . . . Core Remaining (%) 53 | 100 . . . 72 . 46 . . . 35 . . . . 61 . . . . . . 5 . . Volleys Fired 407 | 2 20 29 . . 46 12 . 5 . 38 14 9 24 . 15 5 22 49 33 15 13 32 10 14 Largest 4 | 2 2 2 . . 2 2 . 2 . 4 4 3 3 . 3 1 4 4 4 2 4 4 2 3 Hottest 320 | 60 130 130 . . 130 72 . 72 . 290 320 240 208 . 209 80 100 108 146 102 124 138 89 218 Shots Fired 926 | 4 39 57 . . 78 24 . 19 2 91 42 22 52 . 34 5 49 142 80 33 27 78 12 36 Gun 693 | 4 39 57 . . 66 . . 10 2 73 38 22 33 . 17 2 36 129 44 1 18 78 2 22 Cannon 133 | . . . . . . . . . . . . . 16 . 12 . 13 . 36 32 . . 10 14 Launcher 99 | . . . . . 12 24 . 9 . 18 3 . 3 . 5 3 . 13 . . 9 . . . Special 1 | . . . . . . . . . . . 1 . . . . . . . . . . . . . Kinetic 394 | 2 . . . . . . . . . 13 . . 16 . 12 . 49 122 73 33 18 30 12 14 Thermal 376 | 2 39 57 . . 66 . . 10 2 60 38 22 33 . 17 2 . 6 . . . . . 22 Explosive 83 | . . . . . 12 24 . 9 . 18 3 . 3 . 5 3 . 6 . . . . . . Electromagnetic 15 | . . . . . . . . . . . . . . . . . . 8 7 . . . . . Entropic 57 | . . . . . . . . . . . . . . . . . . . . . 9 48 . . Robot Hit Streak 41 | 4 12 11 . . 13 7 . 3 . 9 18 15 11 . 10 3 6 13 12 8 21 15 23 41 Robot Miss Streak 15 | . 4 7 . . 8 2 . 6 6 4 6 4 8 . 15 1 2 7 2 2 3 4 . 2 Penetration Max 1 | . . . . . . . . . . . . . 1 . . . . . . . . . . 1 Secondary Targets 15 | . . 2 . . 2 . . . . 2 2 . 1 . . . . . 1 . . 5 . . Max Gunslinging Chain 2 | . . 1 . . 1 . . . . 2 2 . 1 . . . . . 1 . . 1 . . Autonomous 25 | . . . . . . . . 15 2 8 . . . . . . . . . . . . . . Shots Hit Robots 963 | 4 37 50 . . 78 64 4 142 . 70 38 20 46 26 36 32 15 99 64 22 20 59 8 29 Core Hits 748 | 3 49 64 . . 74 42 3 45 . 56 64 20 52 14 15 45 6 101 27 11 23 24 5 5 Critical Kills 7 | . . . . . . 1 . . . 1 . . 2 . . . . . . . . . 1 2 Critical Parts Destroyed 26 | . . . . . . 8 . 8 . 2 . . 2 . . . 1 1 . . . 1 2 1 Critical Strikes 80 | . . . . . . 9 . 13 . 3 3 . 4 5 7 5 5 3 6 2 . 1 4 10 Burn 1 | . . . . . . . . . . . . . . . . . . . . . . . . 1 Destroy 27 | . . . . . . . . . . . . . 4 . 4 . 5 1 . . . . 4 9 Blast 7 | . . . . . . . . . . . . . . . . . . . 5 2 . . . . Corrupt 1 | . . . . . . . . . . . . . . . . . . . 1 . . . . . Smash 20 | . . . . . . 9 . 8 . 3 . . . . . . . . . . . . . . Sever 5 | . . . . . . . . 5 . . . . . . . . . . . . . . . . Impale 18 | . . . . . . . . . . . 3 . . 5 3 5 . 2 . . . . . . Detonate 1 | . . . . . . . . . . . . . . . . . . . . . . 1 . . Melee Attacks 546 | . . . . . 23 89 13 188 . 33 23 . 12 43 17 41 . 46 9 . . . 7 2 Impact 211 | . . . . . 12 58 6 93 . 33 . . . . . . . . . . . . 7 2 Slashing 144 | . . . . . 11 31 7 95 . . . . . . . . . . . . . . . . Piercing 191 | . . . . . . . . . . . 23 . 12 43 17 41 . 46 9 . . . . . Sneak Attacks 38 | . . . . . 2 2 . 6 . . 9 . . 1 3 8 . . 7 . . . . . Combat Hostiles 6 | . . . . . 1 1 . 2 . . . . . . 2 . . . . . . . . . Follow-up Attacks 98 | . . . . . 2 9 5 50 . 4 . . 5 14 4 3 . 2 . . . . . . Damage Inflicted 41239 | 40 520 662 . . 2397 4233 126 5877 . 2299 2368 525 1319 925 1279 2443 308 4233 2254 820 5021 2691 187 712 Guns 10819 | 40 520 662 . . 878 . . 344 . 1067 684 525 560 . 297 12 98 1351 475 . 288 2528 48 442 Cannons 2814 | . . . . . . . . . . . . . 136 . 138 . 210 . 1117 820 . . 123 270 Explosions 13395 | . . . . . 885 1831 . 137 . 452 1102 . 324 . 199 1081 . 2488 . . 4733 163 . . Melee 14195 | . . . . . 634 2402 126 5396 . 780 582 . 299 925 645 1350 . 394 662 . . . . . Ramming 16 | . . . . . . . . . . . . . . . . . . . . . . . 16 . Kinetic 5358 | 18 . . . . . . . . . 97 . . 136 . 138 . 308 1240 1478 820 288 394 171 270 Thermal 6402 | 22 520 662 . . 878 . . 344 . 970 684 525 560 . 297 12 . 323 . . . 163 . 442 Explosive 7789 | . . . . . 885 1831 . 137 . 452 1102 . 324 . 199 1081 . 1778 . . . . . . Electromagnetic 612 | . . . . . . . . . . . . . . . . . . 498 114 . . . . . Impact 5034 | . . . . . 373 1626 34 2221 . 780 . . . . . . . . . . . . . . Slashing 4304 | . . . . . 261 776 92 3175 . . . . . . . . . . . . . . . . Piercing 4857 | . . . . . . . . . . . 582 . 299 925 645 1350 . 394 662 . . . . . Entropic 6867 | . . . . . . . . . . . . . . . . . . . . . 4733 2134 . . Highest Corruption 30 | . 1 1 1 1 . 1 . 17 17 30 1 1 1 1 24 . . 3 7 7 7 3 . . Average Corruption 5 | . 1 1 1 1 . 1 . 12 17 28 1 1 1 1 5 . . 1 3 7 7 1 . . Corruption Purged . | . . . . . . . . . . . . . . . . . . . . . . . . . Corruption Blocked . | . . . . . . . . . . . . . . . . . . . . . . . . . Effects 391 | . 7 10 5 . . 14 . 63 4 91 4 9 14 3 73 . . 11 47 25 . 11 . . Message Errors 87 | . 2 2 2 . . 2 . 11 1 22 . 4 4 1 17 . . 2 8 6 . 3 . . Matter Fused 90 | . . 3 1 . . 5 . 16 1 16 . 1 2 1 24 . . 2 10 3 . 5 . . Heat Flow Errors 47 | . . 4 1 . . 2 . 9 2 5 . . 2 1 7 . . . 6 7 . 1 . . Energy Discharges 44 | . . . 1 . . 1 . 8 . 15 1 1 2 . 5 . . 2 6 2 . . . . Parts Rejected 2 | . . . . . . . . 1 . 1 . . . . . . . . . . . . . . Parts Fused 6 | . . . . . . 1 . . . 2 . . . . 1 . . 1 1 . . . . . Data Loss (minor) 59 | . 2 . . . . 2 . 10 . 18 1 1 2 . 9 . . 2 8 2 . 2 . . Data Loss (major) 21 | . 2 . . . . . . 4 . 4 2 1 . . 5 . . . 1 2 . . . . Misfires 13 | . . . . . . . . . . . . 1 . . 3 . . 1 5 3 . . . . Alerts 11 | . 1 . . . . 1 . 3 . 1 . . 1 . 2 . . 1 1 . . . . . Misdirections 1 | . . . . . . . . 1 . . . . . . . . . . . . . . . . Weapon Failures 10 | . . 1 . . . . . . . 7 . . 1 . . . . . 1 . . . . . Overload Shots . | . . . . . . . . . . . . . . . . . . . . . . . . . Overflow Damage 2478 | . . . . . 88 552 9 471 . 166 111 . . . 157 133 . 34 290 31 436 . . . Projectiles 31 | . . . . . . . . . . . . . . . . . . . . 31 . . . . Explosions 619 | . . . . . 35 68 . . . 15 6 . . . 21 4 . 34 . . 436 . . . Melee 1828 | . . . . . 53 484 9 471 . 151 105 . . . 136 129 . . 290 . . . . . Knockbacks 15 | . . . . . 1 3 . 6 . . . . 2 . . . . . . 2 . . 1 . Impact 9 | . . . . . 1 3 . 5 . . . . . . . . . . . . . . . . Kinetic 5 | . . . . . . . . . . . . . 2 . . . . . . 2 . . 1 . Secondary 1 | . . . . . . . . 1 . . . . . . . . . . . . . . . . Self-Inflicted Damage 855 | . . . . . . . . 64 . 132 27 . 27 . 71 203 . 331 . . . . . . Shots 37 | . . . . . . . . 2 . 6 3 . 1 . 3 8 . 14 . . . . . . Rammed 1 | . . . . . . . . . . . . . . . . . . . . . . . 1 . Targets Rammed 1 | . . . . . . . . . . . . . . . . . . . . . . . 1 . Kicked . | . . . . . . . . . . . . . . . . . . . . . . . . . Crushed . | . . . . . . . . . . . . . . . . . . . . . . . . . Highest Temperature 560 | 10 342 253 106 . 349 229 . 401 167 235 120 75 297 171 488 41 121 150 560 281 48 229 16 460 Average Temperature 97 | 7 102 84 62 . 117 97 . 137 74 69 50 29 78 91 163 17 35 42 126 97 21 34 12 216 Received Heat Transfer 4245 | . 72 141 . . 513 555 . 786 9 192 99 84 264 . 87 495 . 645 . 63 . 192 48 . Effects 10 | . 1 . . . . . . 3 . . . . . . 2 . . . 1 2 . . . 1 Shutdowns 1 | . . . . . . . . . . . . . . . . . . . . . . . . 1 Energy Bleed 2 | . . . . . . . . 1 . . . . . . . . . . . 1 . . . . Interference 6 | . 1 . . . . . . 2 . . . . . . 2 . . . . 1 . . . . Damage (minor) 1 | . . . . . . . . . . . . . . . . . . . 1 . . . . . Siege Activations 10 | . . . . . . . . . . . . 2 1 . . . . 2 3 1 . . . 1 Total Turns 264 | . . . . . . . . . . . . 25 12 . . . . 11 162 19 . . . 35 Longest Duration 78 | . . . . . . . . . . . . 18 12 . . . . 10 78 19 . . . 35 Martial Activations . | . . . . . . . . . . . . . . . . . . . . . . . . . Shielding Activations . | . . . . . . . . . . . . . . . . . . . . . . . . . Robots Disrupted . | . . . . . . . . . . . . . . . . . . . . . . . . . Combat Hostiles . | . . . . . . . . . . . . . . . . . . . . . . . . . Robots Corrupted 21 | . . . . . 2 7 1 9 . 2 . . . . . . . . . . . . . . Combat Hostiles 20 | . . . . . 2 6 1 9 . 2 . . . . . . . . . . . . . . Parts Fried 24 | . . . . . 5 7 . 9 . 1 . . . . . . . 1 1 . . . . . Impact Corruptions 50 | . . . . . 4 14 1 23 . 8 . . . . . . . . . . . . . . Robots Melted 2 | . . . . . . . . . . . 1 1 . . . . . . . . . . . . Combat Hostiles 1 | . . . . . . . . . . . . 1 . . . . . . . . . . . . Parts Melted 18 | . . 1 . . 2 . . . . 5 4 2 2 . 1 . . . . . . . 1 . Heat Transferred 10634 | 50 640 825 . . 1449 . . 300 . 1697 1500 1200 1275 . 485 25 . 385 . . . 100 . 703 Parts Sabotaged . | . . . . . . . . . . . . . . . . . . . . . . . . . Parts Stolen . | . . . . . . . . . . . . . . . . . . . . . . . . . Parts Stripped . | . . . . . . . . . . . . . . . . . . . . . . . . . Power Chain Reactions 2 | . . . . . . . . . . . . . . . . . . 2 . . . . . . Alert | -11 -10 -10 -10 -9 -8 -8 -7 -7 -7 -7 -6 -6 -6 -6 -5 -5 -5 -5 -5 -5 -5 -4 -4 -4 ------- Run | Yrd Mat Min Exi Min Mat Gar Fac Gar Fac Gar Fac Low Low Dat Pro Fac Was Fac Upp Upp War Pro Fac Was Maximum Alert Level 5 | . . . . . 1 4 3 5 3 5 3 . . . . 2 . 2 . . . . . . Low Security (%) 41 | 100 100 100 . 100 31 . . . . . . . . . . 30 100 68 . . . . 100 100 Level 1 12 | . . . . . 68 15 . . . . . . . . . 47 . 10 . . . . . . Level 2 9 | . . . . . . 12 62 20 . 3 . . . . . 22 . 21 . . . . . . Level 3 19 | . . . . . . 42 37 30 100 32 100 . . . . . . . . . . . . . Level 4 15 | . . . . . . 29 . 39 . 53 . . . . . . . . . . . . . . Level 5 2 | . . . . . . . . 9 . 9 . . . . . . . . . . . . . . High Security . | . . . . . . . . . . . . . . . . . . . . . . . . . Max Security . | . . . . . . . . . . . . . . . . . . . . . . . . . Peak Influence 1816 | 5 57 62 . . 331 1361 715 1816 957 1712 1036 . . . . 422 133 495 . . . . 156 4 Initial 953 | . 3 . . . . 209 714 496 953 659 898 . . . . . 133 . . . . . 153 . Average 516 | . 12 11 . . 192 885 685 1080 943 1213 904 . . . . 276 19 165 . . . . 66 . Influence Increases 9161 | 5 163 275 . . 709 1302 105 1510 29 1143 387 90 295 . 135 745 6 954 235 171 315 325 258 4 Destroy 0b10 Robot/C 5020 | . 100 220 . . 440 720 80 600 . 500 200 80 240 . 100 320 . 540 220 120 280 220 40 . Destroy 0b10 Robot/NC 315 | 5 30 15 . . 45 5 . 30 . . 90 . . . . 50 . 25 5 . 5 10 . . Destroy Leader 688 | . 26 40 . . 106 30 10 30 . 50 54 10 40 . 20 40 . 122 10 30 . 50 20 . Allied During Kill 120 | . . . . . . 22 . . . 77 . . . . . . . . . 21 . . . . Successful Hack 97 | . 7 . . . 14 7 14 7 14 7 . . . . . 6 . . . . . . 21 . Disable Machine 240 | . . . . . 30 60 . 45 15 45 15 . . . . 15 . . . . . . 15 . Anti-Garrison Action 1500 | . . . . . . 300 . 650 . 350 . . . . . 200 . . . . . . . . Destroy Structure 716 | . . . . . 29 83 1 88 . 99 28 . . . . 114 6 252 . . . . 12 4 Advance Influence 150 | . . . . . . . . . . . . . . . . . . . . . . . 150 . Partial Spotted 15 | . . . . . . 15 . . . . . . . . . . . . . . . . . . Lose Combat Pursuer 300 | . . . . . 45 60 . 60 . 15 . . 15 . 15 . . 15 . . 30 45 . . Influence Decreases 9161 | . 168 275 . . 386 264 757 403 903 373 1156 629 696 3 135 365 386 513 552 295 50 584 264 4 Entered New Map 4070 | . 2 . . . . 114 647 213 863 283 814 349 78 3 . . 247 . 164 25 . 265 3 . Time Decay 4151 | . 166 275 . . 346 . 100 . 40 . 342 270 568 . 125 275 139 353 378 200 50 279 241 4 Lost Part 790 | . . . . . 40 110 10 150 . 70 . 10 50 . 10 80 . 160 10 30 . 40 20 . Lost Ally 150 | . . . . . . 40 . 40 . 20 . . . . . 10 . . . 40 . . . . Squads Dispatched 25 | . 1 . . . 4 . 1 . . . 2 . . . . 5 . 11 . . . . 1 . Investigation 8 | . 1 . . . 1 . 1 . . . . . . . . 3 . 2 . . . . . . Extermination 5 | . . . . . . . . . . . 1 . . . . . . 3 . . . . 1 . Reinforcement 11 | . . . . . 3 . . . . . . . . . . 2 . 6 . . . . . . Assault 1 | . . . . . . . . . . . 1 . . . . . . . . . . . . . Garrison . | . . . . . . . . . . . . . . . . . . . . . . . . . Intercept . | . . . . . . . . . . . . . . . . . . . . . . . . . Searches Triggered . | . . . . . . . . . . . . . . . . . . . . . . . . . Construction Impeded 4 | . . . . . 1 . . . . . . . . . . 1 . 2 . . . . . . Haulers Reinforced 1 | . . . . . . . . . . . . . . . . . . 1 . . . . . . Active Scanning Responses . | . . . . . . . . . . . . . . . . . . . . . . . . . Cargo Convoy Interrupts 1 | . . . . . . . . . . . . . . . . . . 1 . . . . . . Stealth | -11 -10 -10 -10 -9 -8 -8 -7 -7 -7 -7 -6 -6 -6 -6 -5 -5 -5 -5 -5 -5 -5 -4 -4 -4 --------- Run | Yrd Mat Min Exi Min Mat Gar Fac Gar Fac Gar Fac Low Low Dat Pro Fac Was Fac Upp Upp War Pro Fac Was Distress Signals 7 | . 1 . . . 2 . . . . . . . . . . 1 . 2 . . 1 . . . Communications Jammed 1 | . . . . . . . . . . . 1 . . . . . . . . . . . . . Distress Signals . | . . . . . . . . . . . . . . . . . . . . . . . . . Times Spotted 315 | . 9 11 . . 33 40 4 30 2 19 18 4 13 4 5 25 . 38 11 6 15 21 3 4 Peak Tracking Total 9 | . 3 3 . . 7 5 4 4 2 4 5 3 3 2 1 8 . 8 9 3 7 6 2 3 Tactical Retreats 15 | . . . . . 2 3 . 3 . 1 . . 1 . 1 . . 1 . . 1 2 . . Traps | -11 -10 -10 -10 -9 -8 -8 -7 -7 -7 -7 -6 -6 -6 -6 -5 -5 -5 -5 -5 -5 -5 -4 -4 -4 ------- Run | Yrd Mat Min Exi Min Mat Gar Fac Gar Fac Gar Fac Low Low Dat Pro Fac Was Fac Upp Upp War Pro Fac Was Traps Triggered 17 | . 2 . . . 1 4 . 2 . 1 . . . . . 2 . 4 . . . . 1 . Indirectly 1 | . . . . . . . . . . . . . . . . . . 1 . . . . . . Trap Hack Attempts . | . . . . . . . . . . . . . . . . . . . . . . . . . Triggered . | . . . . . . . . . . . . . . . . . . . . . . . . . Disarmed . | . . . . . . . . . . . . . . . . . . . . . . . . . Reprogrammed . | . . . . . . . . . . . . . . . . . . . . . . . . . Reused . | . . . . . . . . . . . . . . . . . . . . . . . . . Traps Extracted . | . . . . . . . . . . . . . . . . . . . . . . . . . Installed . | . . . . . . . . . . . . . . . . . . . . . . . . . Triggered . | . . . . . . . . . . . . . . . . . . . . . . . . . Machines | -11 -10 -10 -10 -9 -8 -8 -7 -7 -7 -7 -6 -6 -6 -6 -5 -5 -5 -5 -5 -5 -5 -4 -4 -4 ---------- Run | Yrd Mat Min Exi Min Mat Gar Fac Gar Fac Gar Fac Low Low Dat Pro Fac Was Fac Upp Upp War Pro Fac Was Machines Disabled 33 | . . . . . 2 7 . 8 1 8 1 . . . . 1 . . . . 4 . 1 . Max in Single Turn 3 | . . . . . 1 2 . 1 1 2 1 . . . . 1 . . . . 3 . 1 . Garrison Access 1 | . . . . . . . . . . . . . . . . 1 . . . . . . . . Garrison Relay 11 | . . . . . . 3 . 3 . 5 . . . . . . . . . . . . . . Phase Generator 1 | . . . . . . . . 1 . . . . . . . . . . . . . . . . Machines Repaired . | . . . . . . . . . . . . . . . . . . . . . . . . . Machines Dismantled . | . . . . . . . . . . . . . . . . . . . . . . . . . Machines Sabotaged . | . . . . . . . . . . . . . . . . . . . . . . . . . Overloaded Fab Kills . | . . . . . . . . . . . . . . . . . . . . . . . . . Hacking | -11 -10 -10 -10 -9 -8 -8 -7 -7 -7 -7 -6 -6 -6 -6 -5 -5 -5 -5 -5 -5 -5 -4 -4 -4 --------- Run | Yrd Mat Min Exi Min Mat Gar Fac Gar Fac Gar Fac Low Low Dat Pro Fac Was Fac Upp Upp War Pro Fac Was Machines Accessed 38 | . 1 . 1 . 5 2 2 3 1 1 1 . 1 4 . 4 . 7 1 . 1 . 3 . Terminals 23 | . 1 . . . 4 2 1 3 . 1 1 . . . . 2 . 6 . . . . 2 . Fabricators 2 | . . . . . . . . . . . . . . . . 1 . 1 . . . . . . Repair Stations . | . . . . . . . . . . . . . . . . . . . . . . . . . Recycling Units . | . . . . . . . . . . . . . . . . . . . . . . . . . Scanalyzers 1 | . . . . . . . . . . . . . . . . . . . . . . . 1 . Garrison Access 4 | . . . . . 1 . 1 . 1 . . . . . . 1 . . . . . . . . Total Hacks 108 | . 6 . 4 . 10 5 3 8 1 1 1 . 1 28 . 12 . 15 1 . 1 . 11 . Successful 56 | . 2 . 4 . 3 1 1 1 1 1 1 . 1 28 . 5 . 3 1 . 1 . 2 . Failed 52 | . 4 . . . 7 4 2 7 . . . . . . . 7 . 12 . . . . 9 . Catastrophic 15 | . 1 . . . 4 2 1 2 . . . . . . . 1 . 2 . . . . 2 . Database Lockouts . | . . . . . . . . . . . . . . . . . . . . . . . . . Manual 43 | . 6 . . . 8 . 1 . . . 1 . . . . 7 . 11 . . 1 . 8 . Terminals 58 | . 6 . . . 9 5 1 8 . 1 1 . . . . 6 . 13 . . . . 8 . Fabricators 5 | . . . . . . . . . . . . . . . . 3 . 2 . . . . . . Repair Stations . | . . . . . . . . . . . . . . . . . . . . . . . . . Recycling Units . | . . . . . . . . . . . . . . . . . . . . . . . . . Scanalyzers 3 | . . . . . . . . . . . . . . . . . . . . . . . 3 . Garrison Access 7 | . . . . . 1 . 2 . 1 . . . . . . 3 . . . . . . . . Terminal Hacks 45 | . 2 . 4 . 2 1 . 1 . 1 1 . 1 28 . 1 . 1 1 . 1 . . . Record 15 | . . . 4 . . . . . . . . . . 11 . . . . . . . . . . Part Schematic 11 | . 2 . . . . . . . . . . . . 9 . . . . . . . . . . Robot Schematic 5 | . . . . . . . . . . . . . . 5 . . . . . . . . . . Prototype ID Bank 3 | . . . . . . . . . . . . . . 3 . . . . . . . . . . Open Door 6 | . . . . . . 1 . 1 . 1 . . 1 . . . . . 1 . 1 . . . Branch Access Points 3 | . . . . . . . . . . . 1 . . . . 1 . 1 . . . . . . Hauler Manifests 1 | . . . . . 1 . . . . . . . . . . . . . . . . . . . Zone Layout 1 | . . . . . 1 . . . . . . . . . . . . . . . . . . . Fabricator Hacks 1 | . . . . . . . . . . . . . . . . 1 . . . . . . . . Load Schematic 1 | . . . . . . . . . . . . . . . . 1 . . . . . . . . Repair Station Hacks . | . . . . . . . . . . . . . . . . . . . . . . . . . Recycling Unit Hacks . | . . . . . . . . . . . . . . . . . . . . . . . . . Scanalyzer 1 | . . . . . . . . . . . . . . . . . . . . . . . 1 . Retrieve Study 1 | . . . . . . . . . . . . . . . . . . . . . . . 1 . Garrison Access Hacks 3 | . . . . . 1 . 1 . 1 . . . . . . . . . . . . . . . Unlock Access 3 | . . . . . 1 . 1 . 1 . . . . . . . . . . . . . . . Unauthorized Hacks 6 | . . . . . . . . . . . . . . . . 3 . 2 . . . . 1 . Terminals 5 | . . . . . . . . . . . . . . . . 2 . 2 . . . . 1 . Assimilate 1 | . . . . . . . . . . . . . . . . 1 . . . . . . . . Botnet 4 | . . . . . . . . . . . . . . . . 1 . 2 . . . . 1 . Fabricators . | . . . . . . . . . . . . . . . . . . . . . . . . . Repair Stations . | . . . . . . . . . . . . . . . . . . . . . . . . . Recycling Units . | . . . . . . . . . . . . . . . . . . . . . . . . . Scanalyzers . | . . . . . . . . . . . . . . . . . . . . . . . . . Garrison Access 1 | . . . . . . . . . . . . . . . . 1 . . . . . . . . Jam 1 | . . . . . . . . . . . . . . . . 1 . . . . . . . . Data Cores Recovered . | . . . . . . . . . . . . . . . . . . . . . . . . . Used . | . . . . . . . . . . . . . . . . . . . . . . . . . Hacking Detections 27 | . 1 . . . 3 2 2 2 1 1 1 . . . . 4 . 7 . . . . 3 . Full Trace Events 6 | . 1 . . . . 1 1 1 . . . . . . . 1 . 1 . . . . . . Feedback Events 2 | . 1 . . . . 1 . . . . . . . . . . . . . . . . . . Corruption 2 | . 1 . . . . 1 . . . . . . . . . . . . . . . . . . Feedback Blocked . | . . . . . . . . . . . . . . . . . . . . . . . . . Robot Schematics Acquired 5 | . . . . . . . . . . . . . . 5 . . . . . . . . . . Robots Built . | . . . . . . . . . . . . . . . . . . . . . . . . . Authchips . | . . . . . . . . . . . . . . . . . . . . . . . . . Time . | . . . . . . . . . . . . . . . . . . . . . . . . . Total Robot Build Rating . | . . . . . . . . . . . . . . . . . . . . . . . . . Part Schematics Acquired 11 | . 2 . . . . . . . . . . . . 9 . . . . . . . . . . Parts Built . | . . . . . . . . . . . . . . . . . . . . . . . . . Authchips . | . . . . . . . . . . . . . . . . . . . . . . . . . Time . | . . . . . . . . . . . . . . . . . . . . . . . . . Total Part Build Rating . | . . . . . . . . . . . . . . . . . . . . . . . . . Part Studies Acquired 1 | . . . . . . . . . . . . . . . . . . . . . . . 1 . Parts Repaired . | . . . . . . . . . . . . . . . . . . . . . . . . . Time . | . . . . . . . . . . . . . . . . . . . . . . . . . Parts Recycled . | . . . . . . . . . . . . . . . . . . . . . . . . . Recycled Matter . | . . . . . . . . . . . . . . . . . . . . . . . . . Retrieved Matter . | . . . . . . . . . . . . . . . . . . . . . . . . . Retrieved Components . | . . . . . . . . . . . . . . . . . . . . . . . . . Parts Scanalyzed . | . . . . . . . . . . . . . . . . . . . . . . . . . Part Schematics Acquired . | . . . . . . . . . . . . . . . . . . . . . . . . . Parts Damaged . | . . . . . . . . . . . . . . . . . . . . . . . . . Bothacking | -11 -10 -10 -10 -9 -8 -8 -7 -7 -7 -7 -6 -6 -6 -6 -5 -5 -5 -5 -5 -5 -5 -4 -4 -4 ------------ Run | Yrd Mat Min Exi Min Mat Gar Fac Gar Fac Gar Fac Low Low Dat Pro Fac Was Fac Upp Upp War Pro Fac Was Used RIF Installer . | . . . . . . . . . . . . . . . . . . . . . . . . . Robots Hacked 1 | . . . . . . . . . . . 1 . . . . . . . . . . . . . Non-combat 1 | . . . . . . . . . . . 1 . . . . . . . . . . . . . Combat . | . . . . . . . . . . . . . . . . . . . . . . . . . Robot Hacks Applied 1 | . . . . . . . . . . . 1 . . . . . . . . . . . . . find_chute 1 | . . . . . . . . . . . 1 . . . . . . . . . . . . . Relay Couplers Released 49 | . . . . . . 14 . 14 . 21 . . . . . . . . . . . . . . Machine Destruction 49 | . . . . . . 14 . 14 . 21 . . . . . . . . . . . . . . Fabnet Peak Effective % . | . . . . . . . . . . . . . . . . . . . . . . . . . Robots Rewired 14 | . . . . . . 6 . 2 . 4 . . . . . . . . 2 . . . . . Allies Hacked . | . . . . . . . . . . . . . . . . . . . . . . . . . Hacks Repelled . | . . . . . . . . . . . . . . . . . . . . . . . . . Allies | -11 -10 -10 -10 -9 -8 -8 -7 -7 -7 -7 -6 -6 -6 -6 -5 -5 -5 -5 -5 -5 -5 -4 -4 -4 -------- Run | Yrd Mat Min Exi Min Mat Gar Fac Gar Fac Gar Fac Low Low Dat Pro Fac Was Fac Upp Upp War Pro Fac Was Total Allies 15 | . . . . . . 6 . 2 . 4 . . . . . 1 . . 2 . . . . . Largest Group 4 | . . . . . . 3 . 2 . 4 . . . . . 1 . . 2 2 . . . . Highest-Rated Group 120 | . . . . . . 120 . 70 . 113 . . . . . 10 . . 59 59 . . . . Highest-Rated Ally 40 | . . . . . . 40 . 39 . 31 . . . . . 10 . . 30 30 . . . . Initial Warlord ECA Mod 24 | . . . . . . . 6 6 16 16 24 24 24 24 23 23 23 23 23 23 23 22 22 22 Total Orders 7 | . . . . . . . . 1 . . . . . . . . . . . . 5 . 1 . STAY 1 | . . . . . . . . 1 . . . . . . . . . . . . . . . . ROAM 1 | . . . . . . . . . . . . . . . . . . . . . 1 . . . EXPLORE 4 | . . . . . . . . . . . . . . . . . . . . . 3 . 1 . RETURN 1 | . . . . . . . . . . . . . . . . . . . . . 1 . . . Ally Attacks 91 | . . . . . . 25 . 8 . 39 . . . . . . . . . 19 . . . . Total Damage 1718 | . . . . . . 506 . 100 . 726 . . . . . . . . . 386 . . . . Kills 15 | . . . . . . 6 . . . 8 . . . . . . . . . 1 . . . . Allies Corrupted . | . . . . . . . . . . . . . . . . . . . . . . . . . Allies Melted 2 | . . . . . . . . . . . . . . . . . . . . . 2 . . . Intel | -11 -10 -10 -10 -9 -8 -8 -7 -7 -7 -7 -6 -6 -6 -6 -5 -5 -5 -5 -5 -5 -5 -4 -4 -4 ------- Run | Yrd Mat Min Exi Min Mat Gar Fac Gar Fac Gar Fac Low Low Dat Pro Fac Was Fac Upp Upp War Pro Fac Was Active Infowar (turns) 10062 | . . . . . 101 . . . . . 499 139 . 144 . 649 996 1496 1649 816 1028 1756 641 148 Optics 2061 | . . . . . . . . . . . . . . . . . . . . . 357 1704 . . Sensors 7018 | . . . . . . . . . . . . . . . . 549 996 1496 1649 816 671 52 641 148 Terrain 95 | . . . . . . . . . . . . . . . . 95 . . . . . . . . Structural 251 | . . . . . . . . . . . . . . . . 251 . . . . . . . . Traps 101 | . . . . . 101 . . . . . . . . . . . . . . . . . . . Decoding 196 | . . . . . . . . . . . . . . . . . . . . . . 12 184 . Jamming 782 | . . . . . . . . . . . 499 139 . 144 . . . . . . . . . . Robot Analysis Total 154 | . . . . . . . . . . . . . . 154 . . . . . . . . . . Derelict Logs Recovered 13 | . . 1 . 1 . . . . . . . 1 2 . 2 . . . 2 2 . 2 . . Drone Launches 4 | . . . . . . . . . . . . . . . . . . . . . 3 . 1 . Drone Recoveries 4 | . . . . . . . . . . . . . . . . . . . . . 3 . 1 . Exploration | -11 -10 -10 -10 -9 -8 -8 -7 -7 -7 -7 -6 -6 -6 -6 -5 -5 -5 -5 -5 -5 -5 -4 -4 -4 ------------- Run | Yrd Mat Min Exi Min Mat Gar Fac Gar Fac Gar Fac Low Low Dat Pro Fac Was Fac Upp Upp War Pro Fac Was Turns Passed 26672 | 74 634 1685 350 114 1512 1699 207 2335 93 1556 779 598 1700 450 2796 714 1029 1561 1703 863 1281 2047 656 236 Spaces Moved 12661 | 37 315 659 146 47 597 723 102 1053 58 762 359 333 964 167 1522 372 621 714 842 465 524 925 289 65 Core 314 | 2 . . . . . . . . . . . . . . . . . . . . . 312 . . Treads 10826 | 35 315 659 146 47 177 559 83 1007 58 762 359 333 964 167 1221 39 383 714 842 465 524 613 289 65 Legs 1477 | . . . . . 376 164 19 46 . . . . . . 301 333 238 . . . . . . . Wheels 44 | . . . . . 44 . . . . . . . . . . . . . . . . . . . Hover . | . . . . . . . . . . . . . . . . . . . . . . . . . Flight . | . . . . . . . . . . . . . . . . . . . . . . . . . Fastest Speed 50 | 50 160 240 240 240 101 156 156 150 156 156 160 160 160 160 120 120 120 160 162 166 168 50 168 168 Average Speed 171 | 154 173 240 240 240 203 167 162 156 156 159 160 160 160 160 162 124 144 165 163 168 221 169 194 190 Slowest Speed 330 | 160 240 240 240 240 330 263 190 235 156 160 160 160 160 160 260 160 240 245 166 247 248 250 250 213 Overloaded Moves . | . . . . . . . . . . . . . . . . . . . . . . . . . Propulsion Burnouts . | . . . . . . . . . . . . . . . . . . . . . . . . . Robots Hopped . | . . . . . . . . . . . . . . . . . . . . . . . . . Potential Cave-ins 14 | . . . . . . . . . . . 6 . . . . . . 6 . . 2 . . . Cave-ins Triggered . | . . . . . . . . . . . . . . . . . . . . . . . . . Exploration Rate (%) 52 | 4 35 99 49 14 68 71 5 93 2 73 12 56 86 79 90 9 96 30 76 68 95 89 8 17 Regions Visited 24 Branch Regions 11 Pre-discovered Areas 32 | . . . 1 . . . . . . . . 1 . 29 . . . . . 1 . . . . Known Exits Taken 9 | . . . . . 1 . 1 . 1 . 1 . . . . . . 1 1 1 1 1 . . Unknown Exits Taken 9 | 1 1 1 1 1 . . . . . . . 1 1 1 1 . . . . . . . . . Scrap Searched 15 | . . 1 . . . . . . . . . 1 3 . 3 . . . 3 2 . 2 . . Spaces Dug 66 | . . . . . 2 1 1 7 . 1 12 . 1 . . 5 . 28 . . . . 6 2 Terrain Destroyed 973 | . . . . . 37 24 1 103 . 97 39 . 67 . 191 58 5 158 15 16 139 15 6 2 Melee 65 | . . . . . 2 1 1 7 . 1 12 . . . . 5 . 28 . . . . 6 2 Projectile 57 | . . . . . . . . . . . . . 7 . 5 . 5 2 12 16 . 10 . . AOE 848 | . . . . . 35 23 . 96 . 96 27 . 60 . 186 53 . 128 . . 139 5 . . Terrain Rammed . | . . . . . . . . . . . . . . . . . . . . . . . . . Walls Destroyed . | . . . . . . . . . . . . . . . . . . . . . . . . . Machines Disabled . | . . . . . . . . . . . . . . . . . . . . . . . . . Actions | -11 -10 -10 -10 -9 -8 -8 -7 -7 -7 -7 -6 -6 -6 -6 -5 -5 -5 -5 -5 -5 -5 -4 -4 -4 --------- Run | Yrd Mat Min Exi Min Mat Gar Fac Gar Fac Gar Fac Low Low Dat Pro Fac Was Fac Upp Upp War Pro Fac Was Total 16005 | 48 360 705 148 49 789 1065 129 1485 62 969 480 375 1044 279 1781 528 729 909 1080 512 634 1335 359 151 Wait 1488 | . 9 16 . . 48 144 6 193 . 56 11 26 11 73 201 54 6 49 162 21 13 339 3 47 Move 12641 | 36 314 658 145 46 597 722 102 1052 57 761 358 332 963 166 1521 372 620 713 841 464 523 924 289 65 Hop . | . . . . . . . . . . . . . . . . . . . . . . . . . Pick Up 211 | 5 2 1 1 1 18 14 4 16 1 6 19 1 5 4 7 12 19 14 10 3 17 14 13 4 Fast Attach 138 | 5 9 . . . 13 3 2 12 1 10 8 2 6 . 2 8 13 7 3 2 10 11 8 3 Attach 134 | . . . . 2 6 11 3 16 . 8 3 . 7 3 9 8 8 15 2 3 11 9 8 2 Detach 50 | . . . 2 . 9 2 1 4 . 4 . . 2 . 3 4 3 2 . . 9 1 4 . Swap 161 | . 1 1 . . 13 12 3 9 1 18 16 2 11 5 5 18 4 10 7 2 9 3 5 6 Drop 214 | . 5 . . . 20 8 1 18 2 9 28 3 8 . 5 9 30 7 9 2 29 2 11 8 Fire 407 | 2 20 29 . . 46 12 . 5 . 38 14 9 24 . 15 5 22 49 33 15 13 32 10 14 Melee 429 | . . . . . 19 76 7 129 . 28 23 . 7 28 13 38 . 43 9 . . . 7 2 Ram . | . . . . . . . . . . . . . . . . . . . . . . . . . Kick . | . . . . . . . . . . . . . . . . . . . . . . . . . Crush 1 | . . . . . . . . . . . . . . . . . . . . . . . 1 . Escape Stasis 10 | . . . . . . 5 . 5 . . . . . . . . . . . . . . . . Rewire 121 | . . . . . . 56 . 26 . 31 . . . . . . 4 . 4 . . . . . Trap . | . . . . . . . . . . . . . . . . . . . . . . . . . Miscellaneous . | . . . . . . . . . . . . . . . . . . . . . . . . . Route ------- -11/Scrapyard -10/Materials (discovered 2 exits: [*Mat] / [*Min]) -10/Mines (discovered 4 exits: [*Mat x2] / *Exi / [*Sub]) -10/Exiles -9/Mines -8/Materials (discovered 2 exits: *Fac / Gar) -8/Garrison (discovered 3 exits: *Fac x3) -7/Factory -7/Garrison (discovered 3 exits: *Fac x3) -7/Factory -7/Garrison (discovered 3 exits: *Fac x3) -6/Factory (discovered 4 exits: *Low x2 / Ext x2) -6/Lower Caves -6/Lower Caves (discovered 2 exits: *Fac / *Dat) -6/Data Miner -5/Proximity Caves -5/Factory (discovered 2 exits: Upp x2) -5/Waste -5/Factory (discovered 4 exits: *Fac x2 / *Upp x2) -5/Upper Caves -5/Upper Caves -5/Warlord -4/Proximity Caves -4/Factory -4/Waste History --------- Turn | Location | Event 21 | -11/Scrapyard | Discovered new exit (range 15) 75 | -11/Scrapyard | Entered Materials 319 | -10/Materials | Discovered new exit (range 6) 320 | -10/Materials | Build established: Mutant 393 | -10/Materials | Discovered new exit (range 16) 709 | -10/Materials | Entered Mines 931 | -10/Mines | Discovered new exit (range 7) 1439 | -10/Mines | Learned Materials non-interactive machine intel 1468 | -10/Mines | Discovered new exit (range 8) 1736 | -10/Mines | Found a hidden stash of uninstalled traps 2185 | -10/Mines | Discovered new exit (range 10) 2385 | -10/Mines | Deemed a non-threat by the Exiles lab entrance 2385 | -10/Mines | Discovered new exit (range 5) 2394 | -10/Mines | Entered Exiles 2452 | -10/Exiles | Met 8R-AWN 2494 | -10/Exiles | Met EX-HEX 2590 | -10/Exiles | Met EX-DEC 2607 | -10/Exiles | Learned location of Zion (-7) 2713 | -10/Exiles | Discovered new exit (range 15) 2744 | -10/Exiles | Entered Mines 2759 | -9/Mines | Received a Rocket Launcher from a helpful Derelict 2779 | -9/Mines | Learned Materials emergency access door positions 2837 | -9/Mines | Discovered new exit (range 5) 2858 | -9/Mines | Entered Materials 2858 | -8/Materials | Evolved 4 slots: Propulsion x2, Utility x2 2860 | -8/Materials | Loaded intel: 34 non-interactive machine locations 3360 | -8/Materials | Destroyed 9 combat bots 3758 | -8/Materials | Lost 3 parts (1n1u1w) 4243 | -8/Materials | Discovered new exit (range 10) 4370 | -8/Materials | Identified exit to Garrison 4370 | -8/Materials | Entered Garrison 4521 | -8/Garrison | Garrison Relay disabled 4804 | -8/Garrison | Triggered checkpoint 4839 | -8/Garrison | Destroyed 7 combat bots 4844 | -8/Garrison | Triggered checkpoint 4850 | -8/Garrison | Triggered checkpoint 4884 | -8/Garrison | Destroyed 8 combat bots 4889 | -8/Garrison | Lost 3 parts (2n1u) 5002 | -8/Garrison | Triggered checkpoint 5023 | -8/Garrison | Triggered checkpoint 5044 | -8/Garrison | Garrison Relay disabled 5125 | -8/Garrison | Discovered new exit (range 7) 5291 | -8/Garrison | Discovered new exit (range 10) 5342 | -8/Garrison | Triggered checkpoint 5347 | -8/Garrison | Core integrity fell below 50% 5436 | -8/Garrison | Garrison Relay disabled 5652 | -8/Garrison | Spotted B-75 Beast 5678 | -8/Garrison | Destroyed B-75 Beast 5870 | -8/Garrison | Triggered checkpoint 6054 | -8/Garrison | Discovered new exit (range 10) 6069 | -8/Garrison | Entered Factory 6069 | -7/Factory | Evolved 2 slots: Weapon x2 6227 | -7/Factory | Build established: Gladiator 6276 | -7/Factory | Identified exit to Garrison 6276 | -7/Factory | Entered Garrison 6316 | -7/Garrison | Triggered checkpoint 6418 | -7/Garrison | Garrison Relay disabled 6493 | -7/Garrison | Lost 3 parts (1p1n1u) 6748 | -7/Garrison | Triggered checkpoint 6787 | -7/Garrison | Build established: Scavenger-Gladiator 7116 | -7/Garrison | Discovered new exit (range 12) 7183 | -7/Garrison | System corruption reached 10% 7260 | -7/Garrison | Triggered checkpoint 7274 | -7/Garrison | Garrison Relay disabled 7476 | -7/Garrison | Phase Generator disabled 7891 | -7/Garrison | Build established: Gladiator 8134 | -7/Garrison | Triggered checkpoint 8149 | -7/Garrison | Garrison Relay disabled 8193 | -7/Garrison | Discovered new exit (range 10) 8278 | -7/Garrison | Triggered checkpoint 8323 | -7/Garrison | Build established: Scavenger-Tank 8368 | -7/Garrison | Triggered checkpoint 8469 | -7/Garrison | Discovered new exit (range 8) 8611 | -7/Garrison | Entered Factory 8644 | -7/Factory | Identified exit to Garrison 8704 | -7/Factory | Entered Garrison 8756 | -7/Garrison | Triggered checkpoint 8793 | -7/Garrison | Garrison Relay disabled 8814 | -7/Garrison | Build established: Scavenger-Gunner 8881 | -7/Garrison | Core integrity fell below 50% 8923 | -7/Garrison | Lost 4 parts (3n1w) 9010 | -7/Garrison | Lost 3 parts (1n1u1w) 9209 | -7/Garrison | Triggered checkpoint 9218 | -7/Garrison | Triggered checkpoint 9240 | -7/Garrison | Triggered checkpoint 9269 | -7/Garrison | System corruption reached 30% 9368 | -7/Garrison | Build established: Scavenger-Tank 9382 | -7/Garrison | Discovered new exit (range 11) 9406 | -7/Garrison | Triggered checkpoint 9470 | -7/Garrison | Garrison Relay disabled 9632 | -7/Garrison | Triggered checkpoint 9772 | -7/Garrison | Triggered checkpoint 9880 | -7/Garrison | Discovered new exit (range 11) 10136 | -7/Garrison | Triggered checkpoint 10236 | -7/Garrison | Discovered new exit (range 8) 10260 | -7/Garrison | Entered Factory 10260 | -6/Factory | Evolved 2 slots: Utility x2 10694 | -6/Factory | Found Prototype Launcher 10694 | -6/Factory | Identified Scatter Rocket Array 10697 | -6/Factory | Found Scatter Rocket Array 10840 | -6/Factory | Identified exit to Lower Caves 10840 | -6/Factory | Identified exit to Extension 10960 | -6/Factory | First assault squad dispatched 11039 | -6/Factory | Entered Lower Caves 11045 | -6/Lower Caves | Met a Warlord Commander 11046 | -6/Lower Caves | Learned location of Warlord (-5) 11047 | -6/Lower Caves | Warlord Commander delivered Encrypted Comm Array 11051 | -6/Lower Caves | Found Encrypted Comm Array 11429 | -6/Lower Caves | Attracted the attention of an 0b10 checkpoint 11493 | -6/Lower Caves | Learned Factory stockpile data 11565 | -6/Lower Caves | Discovered new exit (range 7) 11637 | -6/Lower Caves | Entered another Lower Caves area 11764 | -6/Lower Caves | Discovered new exit (range 10) 11856 | -6/Lower Caves | Learned location of 1 exit from Factory 12167 | -6/Lower Caves | Learned Factory non-interactive machine intel 12915 | -6/Lower Caves | Spotted B-75 Beast 12988 | -6/Lower Caves | Destroyed B-75 Beast 13286 | -6/Lower Caves | Discovered new exit (range 8) 13337 | -6/Lower Caves | Entered Data Miner 13337 | -6/Data Miner | Discovered new exit (range 6) 13368 | -6/Data Miner | Met Data Miner 13395 | -6/Data Miner | Learned location of Section 7 (-2) 13395 | -6/Data Miner | Acquired the access code to Warlord's prototype stash 13412 | -6/Data Miner | Build established: Derelict-Gladiator 13432 | -6/Data Miner | Received God Mode back door access code from Data Miner 13545 | -6/Data Miner | Interfaced with the Data Conduit 13742 | -6/Data Miner | Build established: Gladiator 13787 | -6/Data Miner | Entered Proximity Caves 13872 | -5/Proximity Caves | Learned Factory emergency access door positions 13953 | -5/Proximity Caves | Attracted the attention of an 0b10 checkpoint 14193 | -5/Proximity Caves | Learned Factory emergency access door positions 14304 | -5/Proximity Caves | Build established: Scavenger-Gladiator 14360 | -5/Proximity Caves | Spotted B-75 Beast 14898 | -5/Proximity Caves | Build established: Derelict-Gladiator 15501 | -5/Proximity Caves | Build established: Scavenger-Tank 15849 | -5/Proximity Caves | Build established: Scavenger-Gunner 16165 | -5/Proximity Caves | Destroyed B-75 Beast 16195 | -5/Proximity Caves | Lost 3 parts (1n2u) 16404 | -5/Proximity Caves | Discovered new exit (range 5) 16434 | -5/Proximity Caves | System corruption reached 10% 16583 | -5/Proximity Caves | Entered Factory 16583 | -5/Factory | Evolved 2 slots: Propulsion x2 16584 | -5/Factory | Identified exit to Upper Caves 16587 | -5/Factory | Loaded intel: 303 machine locations 16588 | -5/Factory | Loaded intel: 250 non-interactive machine locations 16759 | -5/Factory | Allied Derelicts emerged from ambush trap array 16905 | -5/Factory | Lost 3 allies 16940 | -5/Factory | Lost 4 parts (1n1u2w) 17200 | -5/Factory | Build established: Scavenger-Mutant 17297 | -5/Factory | Sucked down chute 17297 | -5/Factory | Entered Waste 17297 | -5/Waste | The area was eerily silent 17656 | -5/Waste | Found Damper Plating 18035 | -5/Waste | Discovered new exit (range 14) 18127 | -5/Waste | Build established: Hauler-Tank 18206 | -5/Waste | Found Damper Plating 18322 | -5/Waste | Identified exit to Factory 18326 | -5/Waste | Entered Factory 18328 | -5/Factory | Loaded intel: 260 machine locations 18720 | -5/Factory | Discovered new exit (range 9) 18735 | -5/Factory | Identified exit to Factory 19335 | -5/Factory | Cargo convoy interrupted 19565 | -5/Factory | Core integrity fell below 50% 19595 | -5/Factory | Lost 10 parts (1p3n1u5w) 19690 | -5/Factory | Discovered exit to Factory (range 16) 19887 | -5/Factory | Entered Upper Caves 19988 | -5/Upper Caves | Encountered a Warlord checkpoint 20019 | -5/Upper Caves | Build established: Scavenger-Tank 20439 | -5/Upper Caves | Learned Factory stockpile data 20934 | -5/Upper Caves | Learned Factory emergency access door positions 21339 | -5/Upper Caves | Attracted the attention of an 0b10 outpost 21408 | -5/Upper Caves | Destroyed 9 combat bots 21530 | -5/Upper Caves | Build established: Tank 21569 | -5/Upper Caves | Discovered new exit (range 12) 21586 | -5/Upper Caves | Identified exit to Upper Caves 21590 | -5/Upper Caves | Entered another Upper Caves area 21590 | -5/Upper Caves | Accompanied by 2 allies 21686 | -5/Upper Caves | Learned Factory trap positions 21898 | -5/Upper Caves | Build established: Gunner 22240 | -5/Upper Caves | Discovered new exit (range 8) 22256 | -5/Upper Caves | Identified exit to Warlord 22453 | -5/Upper Caves | Entered Warlord 22523 | -5/Warlord | System corruption cleaned by Quarantine Array 22523 | -5/Warlord | Discovered new exit (range 27) 22634 | -5/Warlord | Found Prototype Device 22812 | -5/Warlord | Opened Warlord's prototype stash 22830 | -5/Warlord | Found Spectral Analyzer 22838 | -5/Warlord | Found Prototype Hackware 22849 | -5/Warlord | Found Exp. Targeting Computer 22858 | -5/Warlord | Found Vortex Chain Reactor 22919 | -5/Warlord | Visited the Vortex Lab 22919 | -5/Warlord | Build established: Hauler-Mutant 22925 | -5/Warlord | Warlord's base attacked by MAIN.C 22934 | -5/Warlord | Found Prototype Launcher 22934 | -5/Warlord | Identified Vortex Catalyst Activator 22940 | -5/Warlord | Found Prototype Energy Gun 22943 | -5/Warlord | Found Prototype Energy Gun 22944 | -5/Warlord | Identified Vortex Rifle (x2) 22954 | -5/Warlord | Found Vortex Rifle 22959 | -5/Warlord | Found Vortex Rifle 23263 | -5/Warlord | Met Warlord 23275 | -5/Warlord | Warlord forces counterattacked 23522 | -5/Warlord | Spotted Executioner 23524 | -5/Warlord | Spotted Executioner 23549 | -5/Warlord | Destroyed Executioner 23574 | -5/Warlord | Destroyed 7 combat bots 23584 | -5/Warlord | Spotted Striker 23598 | -5/Warlord | Destroyed Striker 23600 | -5/Warlord | Warlord base infiltrated, sounded retreat 23631 | -5/Warlord | Spotted Striker 23643 | -5/Warlord | Build established: Hauler-Gunner 23667 | -5/Warlord | Spotted Striker 23732 | -5/Warlord | Identified exit to Proximity Caves 23734 | -5/Warlord | Entered Proximity Caves 23836 | -4/Proximity Caves | Spotter reported a threat 23958 | -4/Proximity Caves | Learned location of 1 exit from Research 24066 | -4/Proximity Caves | Learned Research terminal intel 24468 | -4/Proximity Caves | Attracted the attention of an 0b10 checkpoint 24898 | -4/Proximity Caves | Spotted B-86 Titan 25005 | -4/Proximity Caves | Destroyed B-86 Titan 25029 | -4/Proximity Caves | Lost 3 parts (1n2w) 25380 | -4/Proximity Caves | Unaware initiated a cargo recovery operation 25407 | -4/Proximity Caves | Core integrity fell below 20% 25438 | -4/Proximity Caves | Released all parts (12) 25439 | -4/Proximity Caves | Lost 5 parts (1n4w) 25736 | -4/Proximity Caves | Discovered exit to Factory (range 6) 25781 | -4/Proximity Caves | Entered Factory 25781 | -4/Factory | Evolved 2 slots: Power x1, Propulsion x1 25782 | -4/Factory | Loaded intel: 80 trap records 25785 | -4/Factory | Loaded intel: 285 machine locations 26437 | -4/Factory | Manually triggered Chute Trap 26437 | -4/Factory | Sucked down chute 26437 | -4/Factory | Entered Waste 26444 | -4/Waste | Build established: Hauler-Skirmisher 26457 | -4/Waste | Spotted C-40 Crusher 26504 | -4/Waste | Spotted C-40 Crusher 26526 | -4/Waste | Destroyed C-40 Crusher 26640 | -4/Waste | Destroyed C-40 Crusher 26667 | -4/Waste | Crushed by Compactor (1 part destroyed, 1 dropped) 26670 | -4/Waste | Crushed by Compactor (1 part destroyed, 2 dropped) 26673 | -4/Waste | Crushed by Compactor (1 part destroyed, 1 dropped) 26673 | -4/Waste | Self-destructed Last Messages --------------- 26651_ 257 Matter crushed. 26652_ C-40 Crusher suffers critical hit (Destroy). 26658_ HV Slug penetrates C-40 Crusher. 26661_ C-40 Crusher suffers critical hit (Burn). 26661_ C-40 Crusher suffers critical hit (Destroy). 26661_ Destroyed Imp. Cooling System. 26663_ Power failure, Antimatter Reactor shutdown. 26667_ HV Slug penetrates C-40 Crusher. 26667_ C-40 Crusher suffers critical hit (Destroy). 26667_ Arm. Medium Treads+ crushed. 26670_ HV Slug penetrates C-40 Crusher. 26670_ Angular Momentum Engine crushed. 26670_ Arm. Medium Treads+ crushed. 26671_ Ended siege mode. 26673_ Hyp. Mass Driver crushed. 26673_ Arm. Medium Treads+ crushed. Map ----- +----------------------------------------------------+ | ?????????????????????????????????????????????????? | | ?????????????????????????????????????????????????? | | ?????????????????????????????????????????????????? | | ?????????????????????????????????????????????????? | | ?????????????????????????????????????????????????? | | ?????????????????????????????????????????????????? | | ?????????????????????????????????????????????????? | | ?????????????????????????????????????????????????? | | ?????????????????????????????????????????????????? | | ?????????????????????????????????????????????????? | | ?????????????????????????????????????????????????? | | ?????????????????????????????????????????????????? | | ?????????????????????????????????????????????????? | | ?????????????????????????????????????????????????? | | ?????????????????????????????????????????????????? | | ?????????????????????????????????????????????????? | | ????????????????????????######???????????????????? | | ????????????????????????# #???????????????????? | | ??????????############??# #???????????????????? | | ??????????# #??# #???????????????????? | | ??????????# #??# #???????????????????? | | ??????????# #### #???????????????????? | | ??????????# ! #???????????????????? | | ??????????# = #???????????????????? | | ??????????# = = #???????????????????? | | ??????????# ! % @=CC#???????????????????? | | ??????????# ####CCCC#???????????????????? | | ??????????# #??#CC #???????????????????? | | ??????????# ##?# #???????????????????? | | ??????????###########"#?# #???????????????????? | | ????????????????????##"## #???????????????????? | | ??????????????????????# #???????????????????? | | ??????????????????????? % #???????????????????? | | ??????????????????????? #???????????????????? | | ??????????????????????# #???????????????????? | | ??????????????????????### #???????????????????? | | ????????????????????????# % #???????????????????? | | ????????????????????????# #???????????????????? | | ????????????????????????# % #???????????????????? | | ????????????????????????# #???????????????????? | | ???????????????????????? ???????????????????? | | ????????????????????????? ????????????????????? | | ?????????????????????????????????????????????????? | | ?????????????????????????????????????????????????? | | ?????????????????????????????????????????????????? | | ?????????????????????????????????????????????????? | | ?????????????????????????????????????????????????? | | ?????????????????????????????????????????????????? | | ?????????????????????????????????????????????????? | | ?????????????????????????????????????????????????? | +----------------------------------------------------+ Best States ------------- Heat Dissipation 79 Coolant Potential 80 Energy Generation 55 Energy Capacity 1300 Matter Stores 300 Matter Capacity 300 Sight Range 24 Robot Scan Range 16 Terrain Scan Range 14 Terrain Scan Density 10 Jamming Range 12 EM Shielding 2 Armor Coverage 750 Resistance: KI 20 Resistance: TH 25 Core Shielding 30 Weapon Cycling 20 Evasion (%) 55 Targeting Accuracy 12 Launcher Accuracy 40 Target Analysis 8 Core Analysis 9 Recoil Reduction 7 Offensive Hacking 11 Defensive Hacking 14 Item Schematics ----------------- Cargo Storage Unit | -10/Materials | Hacked Huge Storage Unit | -10/Materials | Hacked Combat Drone Bay | -6/Data Miner | Free Lgt. Regenerative Plating | -6/Data Miner | Free Cld. Gravmag System | -6/Data Miner | Free Prc. Energy Filter | -6/Data Miner | Free Mni. Smartbomb Launcher | -6/Data Miner | Free Hvy. Siege Treads | -6/Data Miner | Free Adv. Transmission Jammer | -6/Data Miner | Free Hvy. Disruptor Cannon | -6/Data Miner | Free Imp. Arc Projector | -6/Data Miner | Free Robot Schematics ------------------ R-10 Processor | -6/Data Miner | Free L-41 Fighter | -6/Data Miner | Free B-60 Warrior | -6/Data Miner | Free H-66 Slayer | -6/Data Miner | Free L-61 Swordsman | -6/Data Miner | Free Fabricated ------------ Nothing Repaired ---------- Nothing Studied --------- Arm. Medium Treads | -4/Factory | Hacked Alien Tech Used ----------------- None Achievements -------------- None Challenges ------------ None Game ------ Seed MultinovaHeatReconfigurator Manual? 0 Play Time 02:24:27 Cumulative 508.1 hours Start 2026.07.28 @ 05:55:55 End 2026.07.28 @ 08:28:00 Sessions 1 Manual Loads 0 Difficulty Rogue Special Mode None Game No. 449 Rogue 449 Adventurer 0 Explorer 0 Win Type - Total 13 Types 7/0/3/1/0/0/0/1/0/1 Lore% 63 Gallery% 70 Achievement% 67 Wizard Run 0 Options --------- Layout 1 ASCII 0 Keyboard 0 Movement Mouse Keybinds 0 Fullscreen 2 Font 24/Cog Map View 50x35 Zoom Use 23% Tactical HUD 1 Map Filters NONE Filters NONE Steam 1 RUN: 503cae54-3175-44e6-a6a8-af5b19bccb92